lending/lending_fUSD_20260119
["ID","MTS","AMOUNT","RATE_DAILY","PERIOD"]
[402728931,1768852243832,-209992.14581925,0.00018,2]
[402728932,1768852243843,-388.74112899,0.00018,2]
[402728934,1768852243855,-493.04630757,0.00018,2]
[402728935,1768852243866,-25440.48808433,0.00018,2]
[402728952,1768852245884,-825.99408994,0.00018,2]
[402728953,1768852246000,-330.15551753,0.00018,2]
[402728954,1768852246070,-519.33582053,0.00018,2]
[402728955,1768852282256,1600.0,0.0002567,120]
[402728956,1768852379301,-636.10097213,0.0001542,2]
[402728957,1768852383541,-228.46088989,0.0001542,2]
[402728958,1768852386633,-263.02138044,0.0001542,2]
[402728959,1768852389371,-268.1609877,0.0001542,2]
[402728960,1768852390919,-215.14510851,0.0001542,2]
[402728961,1768852395556,-206.69690622,0.0001542,2]
[402728962,1768852398193,-275.95589045,0.0001542,2]
[402728963,1768852400738,-228.27248753,0.0001542,2]
[402728964,1768852405066,-215.74450503,0.0001542,2]
[402728965,1768852406795,-356.39813618,0.0001542,2]
[402728967,1768852411379,-276.03722908,0.0001542,2]
[402728968,1768852416374,-228.79497786,0.0001542,2]
[402728969,1768852419401,-335.52109047,0.0001542,2]
[402728970,1768852421440,-255.57381864,0.0001542,2]
[402728971,1768852422945,-180.14659574,0.0001542,2]
[402728972,1768852426160,-250.7607454,0.0001542,2]
[402728973,1768852428284,-175.68786292,0.0001542,2]
[402728974,1768852430365,-532.0,0.0001542,2]
[402728975,1768852431900,-405.77959411,0.0001542,2]
[402728976,1768852435111,-166.71859657,0.0001542,2]
[402728977,1768852439340,-262.60598716,0.0001542,2]
[402728978,1768852441054,-497.54052224,0.0001542,2]
[402728979,1768852443006,-184.9149769,0.0001542,2]
[402728980,1768852445368,-171.8454835,0.0001542,2]
[402728981,1768852447544,-183.32129454,0.0001542,2]
[402728982,1768852451464,-242.36082572,0.0001542,2]
[402728983,1768852452902,-330.95698179,0.0001542,2]
[402728985,1768852461741,-303.20627472,0.0001542,2]
[402728986,1768852463676,-154.97974583,0.0001542,2]
[402728987,1768852467422,-257.18103428,0.0001542,2]
[402728988,1768852469080,-232.09640326,0.0001542,2]
[402728989,1768852473078,-500.0,0.00015419,2]
[402728990,1768852473105,-2.72610328,0.00015419,2]
[402728991,1768852474705,-204.7351323,0.00015419,2]
[402728992,1768852476466,-6.72982431,0.00015419,2]
[402728993,1768852476493,-223.66110757,0.00015419,2]
[402728994,1768852478578,-276.33889243,0.00015419,2]
[402728995,1768852478606,-78.49056879,0.00015419,2]
[402728996,1768852485355,-421.50943121,0.00015419,2]
[402728997,1768852485380,-114.39653101,0.00015419,2]
[402728998,1768852490481,-197.46672658,0.00015419,2]
[402728999,1768852494432,-188.13674241,0.00015419,2]
[402729000,1768852494454,-100.32888976,0.00015419,2]
[402729001,1768852496486,-151.21241997,0.00015419,2]
[402729002,1768852499264,-214.52371036,0.00015419,2]
[402729003,1768852500936,-125.41638367,0.00015419,2]
[402729004,1768852500962,-183.93075916,0.00015419,2]
[402729005,1768852503140,-574.00101009,0.00015418,2]
[402729006,1768852504799,-182.90599203,0.00015418,2]
[402729007,1768852507641,-211.57776192,0.00015418,2]
[402729008,1768852511712,-164.736033,0.00015418,2]
[402729009,1768852516337,-66.77920296,0.00015418,2]
[402729010,1768852516374,-300.0,0.00015418,2]
[402729011,1768852516425,-83.22079704,0.00015419,2]
[402729012,1768852519929,-232.8484438,0.00015419,2]
[402729013,1768852519963,-59.04987118,0.00015419,2]
[402729014,1768852521148,318.0057723,0.00015319,2]
[402729015,1768852522696,-440.95012882,0.00015419,2]
[402729016,1768852522726,-164.06598249,0.00015419,2]
[402729017,1768852525308,-192.71582831,0.00015419,2]
[402729018,1768852526920,-143.2181892,0.00015419,2]
[402729019,1768852526946,-16.56041511,0.00015419,2]
[402729020,1768852531244,-166.66085984,0.00015419,2]
[402729021,1768852533254,-87.01072338,0.00015419,2]
[402729022,1768852533284,-254.95724237,0.00015419,2]
[402729023,1768852536516,-180.14659575,0.00015419,2]
[402729024,1768852539243,-64.89616188,0.00015419,2]
[402729025,1768852539273,-236.04905341,0.00015419,2]
[402729026,1768852542978,-263.95094659,0.00015419,2]
[402729027,1768852543004,-37.66878946,0.00015419,2]
[402729028,1768852549920,-159.99371674,0.00015419,2]
[402729029,1768852554789,-204.5447445,0.00015419,2]
[402729030,1768852556262,-97.7927493,0.00015419,2]
[402729031,1768852556290,-271.72159346,0.00015419,2]
[402729032,1768852558242,-228.27840654,0.00015419,2]
[402729033,1768852558270,-10.99390462,0.00015419,2]
[402729034,1768852563162,-287.27718627,0.00015418,2]
[402729035,1768852565743,-12.72281373,0.00015418,2]
[402729036,1768852565771,-267.10960323,0.00015419,2]
[402729037,1768852567811,-221.89649215,0.00015419,2]
[402729038,1768852567842,-229.1037915,0.00015419,2]
[402729039,1768852569926,-165.56161068,0.0001542,2]
[402729040,1768852572138,-219.97604688,0.0001542,2]
[402729041,1768852573815,-300.0,0.0001542,2]
[402729042,1768852577037,-272.56115898,0.0001542,2]
[402729043,1768852579055,-269.69758806,0.0001542,2]
[402729044,1768852580617,-279.24068855,0.0001542,2]
[402729045,1768852584621,-222.83997705,0.0001542,2]
[402729046,1768852588205,-213.26579067,0.0001542,2]
[402729047,1768852589220,-192.40805446,0.00015419,2]
[402729048,1768852592508,-208.3753022,0.00015419,2]
[402729049,1768852596322,-285.04979101,0.00015419,2]
[402729050,1768852599490,-280.40948795,0.00015419,2]
[402729051,1768852602714,-275.80053399,0.00015419,2]
[402729052,1768852604825,-448.17538797,0.00015419,2]
[402729053,1768852607039,-355.69797591,0.00015419,2]
[402729054,1768852611672,-300.0,0.00015419,2]
[402729055,1768852613809,-175.21079314,0.00015419,2]
[402729056,1768852618796,-287.97076746,0.00015419,2]
[402729057,1768852622565,-297.02273188,0.00015419,2]
[402729058,1768852625795,-153.59132081,0.00015419,2]
[402729059,1768852628477,-156.20992786,0.00015419,2]
[402729060,1768852630954,-217.95721102,0.00015419,2]
[402729061,1768852633306,-163.1839078,0.00015419,2]
[402729062,1768852640605,-171.63552027,0.00015419,2]
[402729063,1768852664313,-182.31053033,0.00015419,2]
[402729064,1768852667682,-152.63185,0.00015419,2]
[402729065,1768852670865,-313.91034674,0.00015419,2]
[402729066,1768852676047,-140.0610011,0.00015419,2]
[402729067,1768852676078,-67.87174981,0.00015419,2]
[402729068,1768852678653,-432.12825019,0.00015419,2]
[402729069,1768852678678,-67.87174981,0.00015419,2]
[402729070,1768852681503,-165.46142959,0.00015419,2]
[402729071,1768852684057,-162.06976705,0.00015419,2]
[402729072,1768852686749,-104.59705355,0.00015419,2]
[402729073,1768852686775,-110.01190634,0.00015419,2]
[402729074,1768852689859,-387.37004253,0.00015419,2]
[402729075,1768852691566,-2.61805113,0.00015419,2]
[402729076,1768852691592,-186.92985103,0.00015419,2]
[402729077,1768852696467,-286.84217774,0.00015419,2]
[402729078,1768852698452,-26.22797123,0.00015419,2]
[402729079,1768852698477,-169.75202877,0.00015419,2]
[402729080,1768852701451,-6.34070114,0.00015419,2]
[402729081,1768852701477,-417.43215658,0.00015419,2]
[402729082,1768852703030,-82.56784342,0.00015419,2]
[402729083,1768852703056,-417.43215658,0.00015419,2]
[402729084,1768852704656,-82.56784342,0.00015419,2]
[402729085,1768852704682,-78.60522939,0.00015419,2]
[402729086,1768852706857,-151.02826612,0.00015419,2]
[402729087,1768852709735,-265.20507677,0.00015419,2]
[402729088,1768852712575,-5.16142772,0.00015419,2]
[402729089,1768852712601,-185.8639148,0.00015419,2]
[402729090,1768852714310,-227.96712384,0.00015419,2]
[402729091,1768852717043,-86.16896136,0.00015419,2]
[402729092,1768852717068,-84.50297831,0.00015419,2]
[402729093,1768852718571,-329.22826837,0.00015419,2]
[402729094,1768852720094,-86.26875332,0.00015419,2]
[402729095,1768852720119,-86.85336784,0.00015419,2]
[402729096,1768852723926,-166.66,0.00015419,2]
[402729097,1768852726807,-246.48663216,0.00015419,2]
[402729098,1768852726832,-53.51336784,0.00015419,2]
[402729099,1768852728828,-303.0480494,0.00015419,2]
[402729100,1768852731299,-143.43858276,0.00015419,2]
[402729101,1768852731324,-95.62677317,0.00015419,2]
[402729102,1768852733763,-224.77917528,0.00015419,2]
[402729103,1768852736567,-171.38700965,0.00015419,2]
[402729104,1768852738581,-8.2070419,0.00015419,2]
[402729105,1768852738607,-166.13237005,0.00015419,2]
[402729106,1768852742371,-165.1992319,0.00015418,2]
[402729107,1768852747726,-134.8007681,0.00015418,2]
[402729108,1768852747752,-74.98505165,0.00015419,2]
[402729109,1768852748999,-205.66373875,0.00015419,2]
[402729110,1768852750521,-53.21883955,0.00015419,2]
[402729111,1768852750548,-326.22413417,0.00015419,2]
[402729112,1768852753664,-173.77586583,0.00015419,2]
[402729113,1768852753693,-43.7739554,0.00015419,2]
[402729114,1768852756830,-152.90282489,0.00015419,2]
[402729115,1768852762844,-155.82084239,0.00015419,2]
[402729116,1768852764933,-147.50237732,0.00015419,2]
[402729117,1768852764957,-131.71910876,0.00015419,2]
[402729118,1768852767039,-253.16067858,0.00015419,2]
[402729119,1768852772100,-344.39196226,0.00015419,2]
[402729120,1768852774850,-202.97204716,0.00015419,2]
[402729121,1768852778899,-295.39932112,0.00015419,2]
[402729122,1768852781758,-261.56626942,0.00015419,2]
[402729123,1768852781783,-117.33939811,0.00015419,2]
[402729124,1768852783988,-171.73004629,0.00015419,2]
[402729125,1768852787334,-45.74998367,0.00015419,2]
[402729126,1768852787363,-159.29146897,0.00015419,2]
[402729127,1768852789467,-366.32118838,0.00015419,2]
[402729128,1768852789493,-12.19005734,0.00015419,2]
[402729129,1768852791246,-263.31848591,0.00015419,2]
[402729130,1768852795044,-189.91285204,0.00015419,2]
[402729131,1768852798771,-34.57860471,0.00015419,2]
[402729132,1768852798799,-163.24425569,0.00015419,2]
[402729133,1768852800659,-152.0361023,0.00015419,2]
[402729134,1768852810984,-300.0,0.00015418,2]
[402729135,1768852811020,-52.24036193,0.00015418,2]
[402729136,1768852812660,-160.03041023,0.00015418,2]
[402729137,1768852815713,-192.67023267,0.00015418,2]
[402729138,1768852817770,-231.48647863,0.00015418,2]
[402729139,1768852819307,-169.88456738,0.00015418,2]
[402729140,1768852822665,-176.79782439,0.00015418,2]
[402729141,1768852824766,-187.64021808,0.00015418,2]
[402729142,1768852826963,-29.24990669,0.00015418,2]
[402729143,1768852826995,-235.70301715,0.00015418,2]
[402729144,1768852828618,-64.29698285,0.00015418,2]
[402729145,1768852828639,-135.85730441,0.00015418,2]
[402729146,1768852832919,-164.14269559,0.00015418,2]
[402729147,1768852832946,-8.71922342,0.00015419,2]
[402729148,1768852835260,-246.11298352,0.00015419,2]
[402729149,1768852835288,-8.73314773,0.00015419,2]
[402729150,1768852837963,-49.38067478,0.00015419,2]
[402729151,1768852837989,-184.83484921,0.00015419,2]
[402729152,1768852840222,-211.13810072,0.00015419,2]
[402729153,1768852843466,-104.02705007,0.00015419,2]
[402729154,1768852843491,-72.2752956,0.00015419,2]
[402729155,1768852847502,-176.59405375,0.00015419,2]
[402729156,1768852849255,-251.13065065,0.00015419,2]
[402729157,1768852849285,-53.753123,0.00015419,2]
[402729158,1768852851112,212.0038482,0.00015319,2]
[402729159,1768852851191,-223.94190288,0.00015419,2]
[402729160,1768852853247,-222.30497412,0.00015419,2]
[402729161,1768852853275,-32.21260383,0.00015419,2]
[402729162,1768852855503,-310.54156861,0.00015419,2]
[402729163,1768852858431,-157.24582756,0.00015419,2]
[402729164,1768852858456,-57.00265815,0.00015419,2]
[402729165,1768852860925,-405.15180338,0.00015419,2]
[402729166,1768852862489,-37.84553847,0.00015419,2]
[402729167,1768852862521,-187.06750489,0.00015419,2]
[402729168,1768852864836,-167.86917764,0.00015419,2]
[402729169,1768852866541,-145.06331747,0.00015419,2]
[402729170,1768852866578,-205.47829321,0.00015419,2]
[402729171,1768852866617,-20.96325108,0.00015419,2]
[402729172,1768852871925,-213.62198582,0.00015419,2]
[402729173,1768852879691,-241.61872492,0.00015419,2]
[402729174,1768852886596,-23.79603818,0.00015419,2]
[402729175,1768852886623,-190.58690735,0.00015419,2]
[402729176,1768852888259,-204.60067888,0.00015419,2]
[402729177,1768852894678,-104.81241377,0.00015419,2]
[402729178,1768852894707,-187.25483532,0.00015419,2]
[402729179,1768852896365,-215.21420109,0.00015419,2]
[402729180,1768852901546,-97.53096359,0.00015419,2]
[402729181,1768852901572,-184.00139913,0.00015419,2]
[402729182,1768852904174,-119.82675596,0.00015419,2]
[402729183,1768852904202,-89.36592735,0.00015419,2]
[402729184,1768852908962,-162.03366452,0.00015419,2]
[402729185,1768852912685,-248.60040813,0.00015419,2]
[402729186,1768852912729,-8.65809313,0.00015419,2]
[402729187,1768852914239,-219.72487631,0.00015419,2]
[402729190,1768852917669,-268.11633088,0.00015419,2]
[402729191,1768852917691,-42.87405044,0.00015419,2]
[402729192,1768852920324,-225.8453503,0.00015419,2]
[402729193,1768852920354,-64.55274609,0.00015419,2]
[402729194,1768852924842,-255.88840929,0.00015418,2]
[402729195,1768852929424,-200.0,0.00015411,2]
[402729196,1768852929450,-22.07799881,0.00015418,2]
[402729197,1768852932916,-151.0,0.00015411,2]
[402729198,1768852932942,-22.0335919,0.00015418,2]
[402729199,1768852932971,-3.10136729,0.00015419,2]
[402729200,1768852936134,-151.0,0.00015411,2]
[402729201,1768852936160,-41.14418329,0.00015411,2]
[402729202,1768852942207,-109.85581671,0.00015411,2]
[402729203,1768852942238,-142.9967648,0.00015411,2]
[402729204,1768852944323,-8.0032352,0.00015411,2]
[402729205,1768852944351,-151.0,0.00015411,2]
[402729206,1768852944381,-151.0,0.00015411,2]
[402729207,1768852944407,-22.73524533,0.00015411,2]
[402729208,1768852946397,-177.26475467,0.00015411,2]
[402729209,1768852946427,-122.73524533,0.00015419,2]
[402729210,1768852947982,-213.91614905,0.00015419,2]
[402729211,1768852950543,-405.0,0.00015419,2]
[402729212,1768852952705,-51.19444234,0.00015419,2]
[402729213,1768852952732,-165.28823813,0.00015419,2]
[402729214,1768852955071,-144.32240316,0.00015419,2]
[402729215,1768852955097,-107.1672847,0.00015419,2]
[402729216,1768852959673,-427.90758935,0.00015411,2]
[402729217,1768852961467,-72.09241065,0.00015411,2]
[402729218,1768852961490,-200.0,0.00015411,2]
[402729219,1768852961516,-38.57965593,0.00015419,2]
[402729220,1768852965657,-170.81,0.00015419,2]
[402729221,1768852969750,-183.44305937,0.00015419,2]
[402729222,1768852969778,-141.13337265,0.00015419,2]
[402729223,1768852972494,-235.34687346,0.00015419,2]
[402729224,1768852974624,-275.05317513,0.00015419,2]
[402729225,1768852974652,-71.8559756,0.00015419,2]
[402729226,1768852978548,-51.66377829,0.00015419,2]
[402729227,1768852978573,-379.6244058,0.00015419,2]
[402729228,1768852980851,-139.71396386,0.00015419,2]
[402729229,1768852980876,-257.03806775,0.00015419,2]
[402729230,1768852985452,-157.48745279,0.00015418,2]
[402729231,1768852987124,-142.51254721,0.00015418,2]
[402729232,1768852987151,-161.40100726,0.00015418,2]
[402729233,1768852990899,-75.59899274,0.00015418,2]
[402729234,1768852990924,-242.96193225,0.00015419,2]
[402729235,1768852990951,-280.24673508,0.00015419,2]
[402729236,1768852993405,-219.75326492,0.00015419,2]
[402729237,1768852993430,-108.787424,0.00015419,2]
[402729238,1768852997184,-201.28433964,0.00015419,2]
[402729239,1768853001169,-189.92823636,0.00015419,2]
[402729240,1768853001197,-5.07176364,0.00015419,2]
[402729243,1768853003859,-248.1151893,0.00015419,2]
[402729244,1768853003888,-50.89715323,0.00015419,2]
[402729245,1768853005928,-239.58872496,0.00015419,2]
[402729246,1768853008709,-209.51412181,0.00015419,2]
[402729247,1768853008735,-18.16755575,0.00015419,2]
[402729248,1768853011882,-193.1073709,0.00015419,2]
[402729249,1768853014019,-235.6908274,0.00015419,2]
[402729250,1768853016147,-53.03424595,0.00015419,2]
[402729251,1768853016175,-160.26439594,0.00015419,2]
[402729252,1768853016199,-165.55834094,0.00015419,2]
[402729253,1768853019830,-280.0,0.00015419,2]
[402729254,1768853021573,-199.59492798,0.00015419,2]
[402729255,1768853023598,-344.33935801,0.00015419,2]
[402729256,1768853026310,-419.69961494,0.00015419,2]
[402729257,1768853028663,-299.47953157,0.00015419,2]
[402729258,1768853031030,-382.31602,0.00015419,2]
[402729259,1768853034305,-218.24227358,0.00015419,2]
[402729260,1768853036983,-259.43,0.00015419,2]
[402729261,1768853039147,-191.36008041,0.00015419,2]
[402729262,1768853042595,-300.0,0.00015418,2]
[402729263,1768853042619,-150.22627817,0.00015419,2]
[402729264,1768853044923,-237.64234053,0.00015419,2]
[402729265,1768853047512,-154.69979071,0.00015419,2]
[402729266,1768853049297,-195.0,0.00015419,2]
[402729267,1768853050941,-245.70075882,0.00015419,2]
[402729268,1768853054033,-200.0,0.00015419,2]
[402729269,1768853057858,-200.14401562,0.00015419,2]
[402729270,1768853060540,-187.8127565,0.00015419,2]
[402729271,1768853063807,-352.43299148,0.00015419,2]
[402729272,1768853068234,-165.85848592,0.00015419,2]
[402729273,1768853071338,-165.17107784,0.00015419,2]
[402729274,1768853072901,-269.5220157,0.00015419,2]
[402729275,1768853074959,-158.50428481,0.00015419,2]
[402729276,1768853077591,-177.7339272,0.00015419,2]
[402729277,1768853079274,-395.24998737,0.00015419,2]
[402729280,1768853083743,-319.53239174,0.00015419,2]
[402729281,1768853088145,-164.9802563,0.00015419,2]
[402729282,1768853089319,-207.27013472,0.00015419,2]
[402729283,1768853091451,-273.07438019,0.00015419,2]
[402729284,1768853093579,-300.0,0.00015419,2]
[402729285,1768853095752,-169.12939437,0.00015419,2]
[402729286,1768853097293,-300.0,0.00015419,2]
[402729287,1768853100239,-297.96694655,0.00015419,2]
[402729288,1768853103527,-249.48742691,0.00015418,2]
[402729289,1768853106845,-50.51257309,0.00015418,2]
[402729290,1768853106870,-346.77395253,0.00015418,2]
[402729291,1768853111204,-283.65919852,0.00015418,2]
[402729292,1768853112965,-318.22475805,0.00015418,2]
[402729293,1768853119759,-251.3420909,0.00015418,2]
[402729294,1768853119784,-195.24692824,0.00015418,2]
[402729295,1768853124192,-104.75307176,0.00015418,2]
[402729296,1768853124217,-309.31716922,0.00015419,2]
[402729297,1768853126342,200.0,0.00014647,2]
[402729298,1768853127107,-380.37521086,0.00015419,2]
[402729299,1768853133695,-309.84955089,0.00015419,2]
[402729300,1768853135191,-237.04970593,0.00015419,2]
[402729301,1768853136705,-223.04563829,0.00015419,2]
[402729302,1768853138220,-159.10899073,0.00015419,2]
[402729303,1768853139849,-176.2629968,0.00015419,2]
[402729304,1768853141508,-209.97166445,0.00015419,2]
[402729305,1768853144727,-179.75030881,0.00015419,2]
[402729306,1768853147362,-230.15741242,0.00015419,2]
[402729307,1768853150268,-264.87733376,0.00015419,2]
[402729308,1768853153502,-217.99090718,0.00015419,2]
[402729310,1768853157902,-255.19210098,0.00015419,2]
[402729311,1768853163961,-192.85007256,0.00015418,2]
[402729312,1768853167473,-107.14992744,0.00015418,2]
[402729313,1768853167497,-107.61963569,0.00015418,2]
[402729314,1768853170508,-190.65285717,0.00015418,2]
[402729315,1768853174344,-1.72750714,0.00015418,2]
[402729316,1768853174371,-151.43953332,0.00015419,2]
[402729317,1768853176440,-210.08015066,0.00015419,2]
[402729318,1768853181177,424.00769638,0.00015319,2]
[402729319,1768853182392,-388.99503543,0.00015419,2]
[402729320,1768853184418,-301.01445462,0.00015419,2]
[402729321,1768853191677,-335.29532966,0.00015419,2]
[402729322,1768853193185,-291.56945127,0.00015419,2]
[402729323,1768853198785,-174.67580081,0.00015419,2]
[402729324,1768853203984,-302.0,0.00015419,2]
[402729325,1768853206753,-166.35469058,0.00015419,2]
[402729326,1768853212779,-244.49883138,0.00015419,2]
[402729327,1768853216015,-194.78001737,0.00015419,2]
[402729328,1768853219577,-245.95516537,0.00015419,2]
[402729329,1768853222194,-284.42714575,0.00015419,2]
[402729330,1768853225517,-167.25108689,0.00015419,2]
[402729331,1768853229282,-291.6794358,0.00015419,2]
[402729333,1768853239385,-151.0,0.0001541,2]
[402729334,1768853239410,-151.0,0.0001541,2]
[402729335,1768853239435,-123.76047327,0.0001541,2]
[402729336,1768853243436,-27.23952673,0.0001541,2]
[402729337,1768853243462,-195.45339173,0.0001541,2]
[402729338,1768853247946,-92.2878142,0.0001541,2]
[402729339,1768853247969,-417.32169608,0.0001541,2]
[402729340,1768853250863,-91.41201819,0.0001541,2]
[402729341,1768853250884,-77.18343736,0.0001541,2]
[402729342,1768853251271,1383.02569416,0.0001532,2]
[402729343,1768853254158,-73.81656264,0.0001541,2]
[402729344,1768853254181,-132.23202683,0.0001541,2]
[402729345,1768853256301,-18.76797317,0.0001541,2]
[402729346,1768853256325,-147.93529501,0.0001541,2]
[402729347,1768853260033,-3.06470499,0.0001541,2]
[402729348,1768853260057,-151.0,0.0001541,2]
[402729349,1768853260082,-63.41568369,0.0001541,2]
[402729350,1768853264796,-87.58431631,0.0001541,2]
[402729351,1768853264821,-187.11984609,0.0001541,2]
[402729352,1768853264844,-52.31034453,0.0001541,2]
[402729353,1768853268278,-152.58184406,0.0001541,2]
[402729354,1768853268303,-178.13899624,0.00015419,2]
[402729355,1768853271213,-387.92974064,0.00015419,2]
[402729356,1768853274595,-231.59988282,0.00015419,2]
[402729357,1768853278953,-302.0,0.00015419,2]
[402729358,1768853280569,-222.5250911,0.00015419,2]
[402729359,1768853287950,-309.95623734,0.00015419,2]
[402729360,1768853290135,-211.18046421,0.00015419,2]
[402729361,1768853306730,-264.38189314,0.00015418,2]
[402729363,1768853329295,-208.42876866,0.00015418,2]
[402729364,1768853341536,-147.1893382,0.00015418,2]
[402729365,1768853341563,-220.14059772,0.00015418,2]
[402729366,1768853344150,-79.85940228,0.00015418,2]
[402729367,1768853344175,-283.84178778,0.00015418,2]
[402729368,1768853350443,-16.15821222,0.00015418,2]
[402729369,1768853350467,-418.9451125,0.00015419,2]
[402729370,1768853352589,-296.043009,0.00015419,2]
[402729371,1768853358165,-200.95907073,0.00015419,2]
[402729372,1768853362084,-189.26780316,0.00015419,2]
[402729373,1768853366890,-400.22428166,0.00015419,2]
[402729374,1768853369052,-486.52416711,0.00015419,2]
[402729375,1768853373071,-178.80568517,0.00015419,2]
[402729376,1768853374849,-290.59655894,0.00015419,2]
[402729377,1768853381602,-302.0,0.00015419,2]
[402729379,1768853408302,178.77,0.00012992,2]
[402729380,1768853415369,5534.0692,0.00015319,2]
[402729402,1768853432152,-300.0,0.00015418,2]
[402729404,1768853432161,-1200.0,0.00015418,2]
[402729405,1768853432171,-1304.83393608,0.00015419,2]
[402729406,1768853432182,-590.2430935,0.00015419,2]
[402729407,1768853432205,-7861.63465038,0.00015419,2]
[402729408,1768853432260,-356.82273408,0.00015419,2]
[402729420,1768853438250,-2576.0915,0.00015419,2]
[402729421,1768853438263,-14414.5918549,0.00015419,2]
[402729422,1768853438275,-7225.93981042,0.00015419,2]
[402729423,1768853438287,-46558.23495792,0.00015419,2]
[402729424,1768853438298,-151.0,0.00015419,2]
[402729425,1768853438307,-200.96224254,0.00015419,2]
[402729426,1768853438317,-500.0,0.00015419,2]
[402729427,1768853438327,-294.80959747,0.00015419,2]
[402729428,1768853438336,-542.34273731,0.00015419,2]
[402729429,1768853438346,-192.23943256,0.00015419,2]
[402729430,1768853438359,-500.0,0.00015419,2]
[402729431,1768853438369,-209.13102158,0.00015419,2]
[402729432,1768853438379,-500.0,0.00015419,2]
[402729433,1768853438388,-152.90461503,0.00015419,2]
[402729434,1768853438398,-500.0,0.00015419,2]
[402729435,1768853438408,-500.0,0.00015419,2]
[402729436,1768853438417,-500.0,0.00015419,2]
[402729437,1768853438428,-543.65712416,0.00015419,2]
[402729438,1768853438440,-200.0,0.00015419,2]
[402729439,1768853438450,-4847.445521,0.00015419,2]
[402729440,1768853438459,-43222.6436535,0.00015419,2]
[402729441,1768853438470,-846.4070215,0.00015419,2]
[402729442,1768853438480,-200.0,0.00015419,2]
[402729443,1768853438490,-200.0,0.0001542,2]
[402729444,1768853438500,-200.0,0.00015573,2]
[402729446,1768853438510,-200.0,0.00015573,2]
[402729448,1768853438519,-200.0,0.00015574,2]
[402729449,1768853438529,-1159.02472023,0.00015592,2]
[402729451,1768853438539,-1383.0256941,0.00015607,2]
[402729452,1768853438549,-200.0,0.00015729,2]
[402729454,1768853438559,-200.0,0.00015729,2]
[402729456,1768853438570,-200.0,0.0001573,2]
[402729458,1768853438579,-8821.8209796,0.00015748,2]
[402729460,1768853438589,-200.0,0.00015886,2]
[402729461,1768853438599,-200.0,0.00015886,2]
[402729462,1768853438609,-200.0,0.00015887,2]
[402729463,1768853438618,-1383.0256941,0.00015893,2]
[402729464,1768853438628,-500.0,0.00015973,2]
[402729465,1768853438638,-500.0,0.00015973,2]
[402729466,1768853438648,-202.35755888,0.00015973,2]
[402729467,1768853438658,-500.0,0.00015973,2]
[402729468,1768853438667,-500.0,0.00015973,2]
[402729469,1768853438677,-500.0,0.00015973,2]
[402729470,1768853438687,-500.0,0.00015973,2]
[402729471,1768853438696,-500.0,0.00015973,2]
[402729472,1768853438706,-500.0,0.00015973,2]
[402729473,1768853438715,-200.0,0.00016045,2]
[402729474,1768853438728,-200.0,0.00016045,2]
[402729475,1768853438739,-200.0,0.00016046,2]
[402729476,1768853438748,-2200.0,0.00016082,2]
[402729477,1768853438758,-1383.0256941,0.0001618,2]
[402729478,1768853438769,-3002.22,0.00016332,2]
[402729479,1768853438783,-1500.0,0.00016335,2]
[402729480,1768853438793,-2485.84,0.00016338,2]
[402729481,1768853438804,-151.0,0.0001638,2]
[402729482,1768853438813,-151.0,0.0001638,2]
[402729483,1768853438823,-151.0,0.0001638,2]
[402729484,1768853438833,-151.0,0.0001638,2]
[402729485,1768853438842,-151.0,0.0001638,2]
[402729486,1768853438857,-500.0,0.00016411,2]
[402729487,1768853438867,-1999.0,0.00016438,2]
[402729488,1768853438877,-830.0,0.0001645,2]
[402729489,1768853438886,-4267.39,0.00016458,2]
[402729490,1768853438897,-1383.0256941,0.00016467,2]
[402729491,1768853438907,-3580.44,0.0001652,2]
[402729492,1768853438919,-500.0,0.00016521,2]
[402729493,1768853438929,-500.0,0.00016521,2]
[402729494,1768853438939,-500.0,0.00016521,2]
[402729495,1768853438950,-500.0,0.00016521,2]
[402729496,1768853438961,-500.0,0.00016521,2]
[402729497,1768853438973,-500.0,0.00016521,2]
[402729498,1768853438984,-500.0,0.00016521,2]
[402729499,1768853438996,-500.0,0.00016521,2]